[Event "1st FIDE Olympiad DIS 2023"]
[Site "Belgrade"]
[Date "2023.01.30"]
[Round "1.32"]
[White "Naveen, Kumar A."]
[Black "Singares, Mario Oscar"]
[Result "1-0"]
[ECO "E11"]
[WhiteElo "2014"]
[BlackElo "1425"]
[Annotator "TA"]
[PlyCount "33"]
[EventDate "2023.01.30"]
[EventType "team-tourn"]
[EventCountry "SRB"]
[SourceTitle "playchess.com"]
[Source "ChessBase"]
[SourceQuality "1"]
[WhiteTeam "India"]
[BlackTeam "Panama"]
[WhiteTeamCountry "IND"]
[BlackTeamCountry "PAN"]
[TimeControl "40/5400+30:1800+30"]

{[%evp 9,32,3,28,26,59,20,39,28,178,170,176,174,159,169,467,489,493,487,1492,1467,2181,2232,2891,1606,29999]} 1. d4 {[%emt 0:00:30]} Nf6 {[%emt 0:00:48]} 2. c4 {[%emt 0:01:01]} e6 {[%emt 0:00:17]} 3. Nf3 {[%emt 0:02:04]} Bb4+ {[%emt 0:00:59]} 4. Bd2 {[%emt 0:00:54]} Bxd2+ {[%emt 0:00:37]} 5. Nbxd2 {[%emt 0:00:07]} b6 {[%emt 0:01:08]} 6. e4 {[%emt 0:03:23][%cal Be2e4,Be4e5][%mdl 32] E11: Bogo-Indian.} O-O {[%emt 0:00:41]} 7. Bd3 {[%emt 0:01:43][%cal Bf1d3,Bd3h7,Bh7g6,Bg6h5][%mdl 32]} (7. e5 $5 {[%cal Re5f6]} Nh5 8. Bd3 $14) 7... Bb7 {[%emt 0:00:28]} 8. Qc2 {[%emt 0:02:24] [#] Hoping for e5. White is slightly better.} d5 $146 {[%emt 0:00:48]} (8... h6 $11) ({Predecessor:} 8... g6 9. O-O d6 10. Rfe1 Nc6 11. e5 dxe5 12. Ne4 Nb4 13. Qc3 Nxd3 14. Nxf6+ Qxf6 15. dxe5 {½-½ Verich,O (1126)-Garcia,J (775) BI-2015-F-0000}) 9. cxd5 $18 {[%emt 0:03:53]} exd5 {[%emt 0:00:41]} 10. e5 {[%emt 0:00:17]} Re8 {[%emt 0:02:56]} 11. O-O {[%emt 0:02:54] White is more active.} Nh5 {[%emt 0:02:59]} (11... Ne4 12. Nxe4 dxe4) 12. Bxh7+ {[%emt 0:05:19]} Kf8 {[%emt 0:01:04]} 13. Qf5 {[%emt 0:01:20] Inhibits Nf4.} g6 {[%emt 0:01:29]} (13... Nf6 $142 14. exf6 Qxf6 15. Qxf6 gxf6) 14. Bxg6 {[%emt 0:00:18][%csl Gg6][%cal Rf5f7] [#]} Re7 {[%emt 0:00:59]} 15. Bxh5 {[%emt 0:00:18]} Bc8 {[%emt 0:01:21]} 16. Qh7 {[%emt 0:00:22][%cal Rh7h8]} f5 {[%emt 0:02:41]} 17. Qh8# {[%emt 0:00:13] Black got outplayed after the opening.   Weighted Error Value: White=0.06 (flawless) /Black=1.43} 1-0

[Event "1st FIDE Olympiad DIS 2023"]
[Site "Belgrade"]
[Date "2023.01.31"]
[Round "2.1"]
[White "Mikheev, Stanislav"]
[Black "Tazbir, Marcin"]
[Result "1/2-1/2"]
[ECO "A62"]
[WhiteElo "2300"]
[BlackElo "2507"]
[Annotator "TA"]
[PlyCount "132"]
[EventDate "2023.01.30"]
[EventType "team-tourn"]
[EventCountry "SRB"]
[SourceTitle "playchess.com"]
[Source "ChessBase"]
[SourceQuality "1"]
[WhiteTeam "Serbia"]
[BlackTeam "Poland"]
[WhiteTeamCountry "SRB"]
[BlackTeamCountry "POL"]
[TimeControl "40/5400+30:1800+30"]

{[%evp 17,132,10,48,21,22,26,35,8,7,0,0,-30,-27,-33,-18,-34,0,0,0,0,-3,-28,-28,-20,22,23,33,0,0,0,0,0,0,0,0,0,0,0,33,31,53,31,119,20,21,0,0,0,20,0,122,110,110,103,112,0,20,20,24,25,15,0,0,0,15,0,0,0,0,0,0,0,0,-110,-8,-8,-8,-8,-8,-8,-9,-37,-30,-50,0,-34,-34,-33,-21,-79,-94,-111,-207,-334,-334,-316,-8,-8,-8,-8,-8,-8,0,0,0,0,0,0,0,0,0,0,0,0,0,0,0]} 1. d4 {[%emt 0:00:30]} Nf6 {[%emt 0:00:22]} 2. c4 {[%emt 0:00:00]} e6 {[%emt 0:00:06]} 3. g3 {[%emt 0:00:21]} c5 {[%emt 0:00:56]} 4. d5 {[%emt 0:00:32]} exd5 {[%emt 0:00:06]} 5. cxd5 {[%emt 0:00:04]} d6 {[%emt 0:00:05]} 6. Nc3 {[%emt 0:02:08]} g6 {[%emt 0:00:35]} 7. Bg2 {[%emt 0:00:21]} Bg7 {[%emt 0:00:06]} 8. Nf3 {[%emt 0:00:16]} O-O {[%emt 0:00:07]} 9. O-O {[%emt 0:00:11]} Na6 {[%emt 0:01:42]} 10. Re1 {[%emt 0:02:43] A62: Modern Benoni: Fianchetto Variation without early ...Nbd7.} Re8 {[%emt 0:04:13]} 11. e4 {[%emt 0:03:28] 11.h3 is more advanced technology.} Bg4 {[%emt 0:01:33]} 12. h3 {[%emt 0:02:08] White is slightly better.} Bxf3 {[%emt 0:00:06]} 13. Bxf3 {[%emt 0:00:05]} Nd7 {[%emt 0:01:02]} 14. Bg2 {[%emt 0:02:42]} c4 {[%emt 0:06:28]} 15. Bf1 {[%emt 0:24:22]} Rc8 {[%emt 0:15:10] [#]} 16. Kg2 $146 {[%emt 0:07:45]} ({Predecessor:} 16. Be3 Nac5 17. Bxc4 Bxc3 18. bxc3 Nxe4 19. Bf1 Nxc3 20. Qb3 Ne5 21. Rec1 Qf6 22. Qxb7 {1-0 Short,P (2300)-McCarthy,T (2020) IRL-ch Dublin 2008 (1)}) 16... Nac5 {[%emt 0:12:42]} 17. Bxc4 {[%emt 0:07:22]} Bxc3 {[%emt 0:05:33]} 18. bxc3 {[%emt 0:01:15]} Rxe4 {[%emt 0:00:14]} 19. Rxe4 {[%emt 0:07:49]} Nxe4 {[%emt 0:00:08]} 20. Qd4 {[%emt 0:00:31][%csl LRa7,LRe4]} Qc7 {[%emt 0:02:57] [#]} (20... Nxc3 $5 21. Bb2 (21. Qxc3 Ne5 $15) 21... Qf6 22. Qxf6 (22. Qxc3 Qxc3 {[%mdl 64] Remove Defender} 23. Bxc3 Rxc4 $17) 22... Nxf6 23. Bxc3 Ne4 $15) 21. Bh6 $1 {[%emt 0:03:44][%csl Gh6][%cal Rd4g7]} Nef6 {[%emt 0:09:37]} (21... Qxc4 $2 22. Qg7#) 22. Bb5 $40 {[%emt 0:03:08][%mdl 128] aiming for Bxd7. White mounts an attack.} Qc5 {[%emt 0:00:14]} 23. Bxd7 {[%emt 0:05:36] A strong pair of Bishops.} Qxd4 {[%emt 0:00:07]} 24. cxd4 {[%emt 0:00:03]} Nxd7 $11 {[%emt 0:00:06][%mdl 4096] Endgame KRB-KRN} 25. Re1 {[%emt 0:00:29]} Nb6 {[%emt 0:03:45]} 26. Re7 {[%emt 0:00:36]} Rb8 {[%emt 0:00:27]} 27. Kf3 {[%emt 0:03:46]} Nxd5 {[%emt 0:13:08]} 28. Rd7 {[%emt 0:00:09]} Nb6 {[%emt 0:00:10]} 29. Rxd6 {[%emt 0:00:23]} Nc4 {[%emt 0:00:15]} (29... f5 $14) 30. Rd7 {[%emt 0:00:44]} (30. Rd5 $1 $16) 30... Nb6 {[%emt 0:00:04]} 31. Re7 {[%emt 0:01:40] Threatens to win with Ke4.} Nd5 {[%emt 0:00:38]} 32. Rd7 {[%emt 0:02:25]} Nb6 {[%emt 0:00:33]} 33. Rd6 {[%emt 0:00:03]} (33. Rc7 $11) 33... Nc4 $16 {[%emt 0:00:36]} 34. Rd5 {[%emt 0:00:35]} Nb6 {[%emt 0:00:33]} 35. Ra5 {[%emt 0:05:39]} a6 {[%emt 0:00:17]} 36. Ke4 {[%emt 0:04:38] White is more active.} (36. Re5 $16) 36... f5+ {[%emt 0:04:51]} 37. Kd3 {[%emt 0:00:41]} Rd8 {[%emt 0:00:10]} 38. Re5 {[%emt 0:06:40]} Kf7 {[%emt 0:01:14] Repels Re7+} 39. Bd2 {[%emt 0:01:29]} Nd7 {[%emt 0:08:45]} 40. Ra5 {[%emt 0:01:31]} Nf6 {[%emt 0:02:18]} 41. Bg5 {[%emt 0:31:54]} Rd5 {[%emt 0:30:51]} 42. Rxd5 {[%emt 0:00:00]} Nxd5 $11 {[%emt 0:00:00] KB-KN} 43. Kc4 {[%emt 0:00:00]} Ke6 {[%emt 0:00:00]} 44. Kc5 $1 {[%emt 0:00:00]} Nc3 {[%emt 0:00:00]} 45. f3 {[%emt 0:00:00] Inhibits Ne4+.} (45. Kc4 $11 Nd5 46. Kc5) 45... Nxa2 {[%emt 0:00:00]} ({Black should try} 45... Na4+ $1 $17 46. Kb4 Nb6) 46. Bd2 $1 {[%emt 0:00:00] [#]} a5 $1 {[%emt 0:00:00][%cal Oa2b4][%mdl 64] ...Nb4! is the strong threat. Deflection} 47. Bxa5 {[%emt 0:00:00] Bd2 would be deadly.} Nc1 {[%emt 0:00:00] White must now prevent ...Nb3+.} 48. d5+ {[%emt 0:00:00]} Kd7 {[%emt 0:00:00]} 49. Bc3 {[%emt 0:00:00]} Ne2 {[%emt 0:00:00][%csl LRc3,LRg3]} 50. Be5 {[%emt 0:00:00]} h5 {[%emt 0:00:00]} (50... Ng1 $15) 51. Kb6 {[%emt 0:03:40]} Ng1 {[%emt 0:00:00]} 52. Kxb7 {[%emt 0:00:00]} Nxh3 {[%emt 0:00:00]} 53. Kb6 {[%emt 0:00:00]} Ng5 {[%emt 0:00:00]} 54. Kc5 {[%emt 0:00:00]} (54. f4 Ne4 55. Kb5 Nxg3 $19) 54... Nxf3 {[%emt 0:00:00]} 55. Bb8 {[%emt 0:00:00] [#]} g5 $1 {[%emt 0:00:00] ( -> ...h4)} 56. Kc4 {[%emt 0:00:00] [#]} f4 $2 {[%emt 0:02:51]} 57. Kd3 {[%emt 0:00:00] The position is equal.} fxg3 {[%emt 0:04:22]} 58. Bxg3 {[%emt 0:00:00]} h4 {[%emt 0:00:06]} 59. Ke3 {[%emt 0:00:00]} Nd4 {[%emt 0:03:00]} 60. Kxd4 {[%emt 0:00:49] White threatens Bh2 and mate.} hxg3 {[%emt 0:00:04] KPP-KP} 61. Ke3 {[%emt 0:00:04]} g4 {[%emt 0:00:15]} 62. Ke2 {[%emt 0:00:07]} Kd6 {[%emt 0:00:13]} (62... g2 $5 63. Kf2 $8 Ke7 $11) 63. Kf1 {[%emt 0:00:05]} Kxd5 {[%emt 0:00:02]} 64. Kg2 {[%emt 0:00:05]} Ke4 {[%emt 0:00:03][%cal Bd5e4,Be4f5,Bf5e5][%mdl 32]} 65. Kxg3 {[%emt 0:00:08]} Kf5 {[%emt 0:00:02]} 66. Kh2 {[%emt 0:00:19]} Ke5 {[%emt 0:00:26] Weighted Error Value: White=0.16 (very precise) /Black=0.23 (precise)} (66... Kf4 $5 67. Kg2 $8 Kg5 $11) 1/2-1/2

[Event "1st FIDE Olympiad DIS 2023"]
[Site "Belgrade"]
[Date "2023.01.31"]
[Round "2.1"]
[White "Bozinovic, Bogdan"]
[Black "Zaynidinov, Sirojiddin"]
[Result "1/2-1/2"]
[ECO "E49"]
[WhiteElo "2131"]
[BlackElo "2042"]
[Annotator "TA"]
[PlyCount "116"]
[EventDate "2023.01.30"]
[EventType "team-tourn"]
[EventCountry "SRB"]
[SourceTitle "playchess.com"]
[Source "ChessBase"]
[SourceQuality "1"]
[WhiteTeam "Croatia"]
[BlackTeam "Uzbekistan"]
[WhiteTeamCountry "CRO"]
[BlackTeamCountry "UZB"]
[TimeControl "40/5400+30:1800+30"]

{[%evp 20,116,9,0,39,4,47,44,68,48,66,20,71,69,97,74,104,57,135,107,118,85,156,60,127,61,103,40,107,70,59,49,56,68,257,238,217,172,159,197,235,230,246,203,202,204,196,164,289,283,272,275,264,137,251,249,295,237,216,85,72,63,78,0,0,0,3,0,0,0,0,0,0,0,0,0,0,0,0,0,0,0,0,0,0,0,0,0,0,0,0,0,0,0,0,0,12845,12845,12846]} 1. d4 {[%emt 0:00:22]} Nf6 {[%emt 0:00:42]} 2. c4 {[%emt 0:00:14]} e6 {[%emt 0:00:07]} 3. Nc3 {[%emt 0:00:36]} Bb4 {[%emt 0:03:46]} 4. f3 {[%emt 0:00:46]} d5 {[%emt 0:00:52]} 5. a3 {[%emt 0:00:17]} Bxc3+ {[%emt 0:00:57]} 6. bxc3 {[%emt 0:00:10]} c5 {[%emt 0:02:09]} 7. cxd5 {[%emt 0:01:07]} exd5 {[%emt 0:00:42]} 8. e3 {[%emt 0:00:37]} O-O {[%emt 0:00:58]} 9. Bd3 {[%emt 0:00:35]} Nc6 {[%emt 0:00:43]} 10. Ne2 {[%emt 0:00:34]} Re8 {[%emt 0:16:01]} 11. O-O {[%emt 0:00:34]} Be6 {[%emt 0:06:05] E49: Nimzo-Indian: Rubinstein: 5 Bd3 d5 6 a3 Bxc3+ 7 bxc3.} 12. Ng3 {[%emt 0:04:54] [#]} Nd7 $146 {[%emt 0:12:31]} ({Predecessor:} 12... Rc8 13. Ra2 cxd4 14. cxd4 Na5 15. Re2 Nc4 16. Kh1 Qd6 17. e4 dxe4 18. fxe4 Qxd4 19. e5 {1-0 Przybylski,W (2321)-Juhasz,A (2369) Titled Tuesday intern op 24th Nov blitz 2020 (8)}) 13. Qc2 {[%emt 0:05:31]} g6 {[%emt 0:02:49] White is slightly better.} 14. Qf2 {[%emt 0:00:23]} f5 {[%emt 0:02:10]} 15. Bb2 {[%emt 0:10:11]} (15. Rb1 $14) 15... c4 {[%emt 0:15:10]} (15... Qf6 $11 {keeps the balance.}) 16. Bc2 $16 {[%emt 0:01:16]} b5 {[%emt 0:00:46]} 17. Bc1 {[%emt 0:01:59]} Rf8 {[%emt 0:05:51]} 18. Bd2 {[%emt 0:01:13]} (18. Rb1 $16) 18... Rb8 {[%emt 0:01:41]} ({Black should try} 18... Na5 $14) 19. Qe1 {[%emt 0:01:10]} Qe7 {[%emt 0:05:37]} 20. Qc1 {[%emt 0:02:58]} Nf6 {[%emt 0:01:58]} (20... Qf7 $142) 21. Re1 {[%emt 0:10:22]} (21. e4 $16) 21... Qf7 {[%emt 0:02:29]} (21... a5 $14) 22. Rb1 {[%emt 0:04:23]} (22. e4 $1 $16 {[%cal Re4f5]}) 22... a5 {[%emt 0:01:37] [#]} 23. Rb2 {[%emt 0:03:21]} (23. e4 $1 $16) 23... Rb7 {[%emt 0:01:01]} (23... Qa7 $14) 24. Qb1 {[%emt 0:03:11]} Rfb8 {[%emt 0:02:25]} 25. e4 {[%emt 0:01:28][%cal Re4f5]} fxe4 {[%emt 0:01:44]} 26. fxe4 {[%emt 0:00:27]} (26. Bf4 {is more complex.} exf3 27. Bxb8 f2+ 28. Kxf2 Ne4+ 29. Kg1) 26... Nxe4 $2 {[%emt 0:02:19]} (26... b4 $1 $14 27. axb4 axb4) 27. Bxe4 $18 {[%emt 0:05:20]} dxe4 {[%emt 0:00:12]} 28. Rf1 {[%emt 0:00:30]} Bf5 {[%emt 0:03:50]} 29. Bf4 {[%emt 0:00:34]} (29. Nxe4 Qe7 30. Rxf5 gxf5 $11) 29... Re8 {[%emt 0:02:10][%cal Ob5b4]} 30. Rxb5 {[%emt 0:00:37]} Nd8 {[%emt 0:01:13]} 31. Bh6 {[%emt 0:02:19]} e3 {[%emt 0:02:12]} 32. Nxf5 {[%emt 0:02:07]} e2 {[%emt 0:01:23]} 33. Re1 {[%emt 0:01:05]} Rxb5 {[%emt 0:01:45]} (33... gxf5 $142 34. Rxb7 (34. Qxf5 Qxf5 35. Rxf5 Nf7 $16) 34... Nxb7) 34. Qxb5 {[%emt 0:00:21] Black must now prevent Nd6.} gxf5 {[%emt 0:00:06] Black is weak on the dark squares} 35. Bf4 {[%emt 0:05:03]} ({Don't play} 35. Qxa5 $6 Qe6 36. Bd2 Nf7 $16) 35... Re4 {[%emt 0:00:39]} 36. Qb8 {[%emt 0:00:45]} (36. Qxa5 $18 Ne6 37. Be5) 36... Qe8 {[%emt 0:00:45]} (36... Re8 $16) 37. Be5 {[%emt 0:01:39]} Qd7 {[%emt 0:00:50]} 38. Kf2 {[%emt 0:02:11]} Kf7 {[%emt 0:00:30]} 39. Qc7 {[%emt 0:02:32] Against Nc6} (39. Rxe2 $18 {and White stays clearly on top.} Nc6 40. Qh8 Rxe2+ 41. Kxe2) 39... Qxc7 $16 {[%emt 0:00:39]} 40. Bxc7 {[%emt 0:00:10][%mdl 4096] Endgame KRB-KRN} Ne6 {[%emt 0:00:13]} 41. Be5 {[%emt 0:31:09]} ({Better is} 41. Bxa5 $16 {Strongly threatening g3.} Nf4 42. Kf3) 41... Nc5 $1 $11 {[%emt 0:04:34][%mdl 64] ( -> ...Nd3+). Deflection} 42. dxc5 {[%emt 0:00:00]} Rxe5 {[%emt 0:00:09] KR-KR} 43. c6 {[%emt 0:00:00]} (43. Rxe2 {simplifies} Rxc5 44. Rd2 Rb5 45. Ke3) 43... Ke6 {[%emt 0:12:35]} ({Don't do} 43... Rc5 44. Rxe2 Kf6 45. Ke3 $14) 44. Rxe2 {[%emt 0:00:00]} Rxe2+ {[%emt 0:00:05]} 45. Kxe2 {[%emt 0:00:00] KP-KP} Kd6 {[%emt 0:00:02]} 46. Ke3 {[%emt 0:00:00]} Kxc6 {[%emt 0:00:10]} 47. a4 {[%emt 0:00:00] Kf4 would be deadly.} (47. Kd4 $5 Kb5 $8 48. h3 $11) 47... Kd5 {[%emt 0:00:07]} 48. Kf4 {[%emt 0:00:00]} Ke6 {[%emt 0:00:02]} 49. g3 {[%emt 0:00:00]} Kf6 {[%emt 0:00:21]} 50. h3 {[%emt 0:00:00][%cal Bh2h3,Bh3g4,Bg4g5][%mdl 32]} Ke6 {[%emt 0:01:21]} 51. g4 {[%emt 0:00:00]} fxg4 {[%emt 0:00:49]} 52. hxg4 {[%emt 0:00:00] K3P-K3P} Kf6 {[%emt 0:01:55]} 53. g5+ {[%emt 0:00:12]} Kg6 {[%emt 0:02:00]} 54. Kg4 {[%emt 0:00:23]} Kf7 {[%emt 0:02:40]} 55. Kf5 Kg7 {[%emt 0:00:01]} 56. Kf4 {[%emt 0:00:03]} Kg6 57. Kg4 Kg7 $2 {[%emt 0:00:02][%mdl 8192] [#]} (57... Kf7 $11) 58. Kh5 $1 $18 {[%emt 0:00:02]} Kf7 {[%emt 0:00:01][%mdl 32768] Weighted Error Value: White=0.27 (precise) /Black=0.37. An unexpected result.} 1/2-1/2

[Event "1st FIDE Olympiad DIS 2023"]
[Site "Belgrade"]
[Date "2023.01.31"]
[Round "2.2"]
[White "Molenda, Marcin"]
[Black "Sargissyan, Sargis"]
[Result "1-0"]
[ECO "D97"]
[WhiteElo "2381"]
[BlackElo "2221"]
[Annotator "TA"]
[PlyCount "91"]
[EventDate "2023.01.30"]
[EventType "team-tourn"]
[EventCountry "SRB"]
[SourceTitle "playchess.com"]
[Source "ChessBase"]
[SourceQuality "1"]
[WhiteTeam "Poland"]
[BlackTeam "Armenia"]
[WhiteTeamCountry "POL"]
[BlackTeamCountry "ARM"]
[TimeControl "40/5400+30:1800+30"]

{[%evp 19,91,0,0,0,3,30,69,20,12,0,17,15,24,7,15,21,21,21,21,15,19,15,16,20,16,35,54,62,63,48,47,58,79,75,81,82,80,79,97,97,97,104,110,94,102,93,104,85,91,54,152,139,373,368,365,353,390,389,381,381,399,404,372,372,668,654,620,621,573,499,1129,986,741,1358]} 1. d4 {[%emt 0:00:06]} Nf6 {[%emt 0:00:05]} 2. c4 {[%emt 0:00:05]} g6 {[%emt 0:00:04]} 3. Nc3 {[%emt 0:00:06]} d5 {[%emt 0:00:21]} 4. Nf3 {[%emt 0:00:09]} Bg7 {[%emt 0:00:06]} 5. Qb3 {[%emt 0:00:04]} dxc4 {[%emt 0:10:09]} 6. Qxc4 {[%emt 0:00:14]} O-O {[%emt 0:01:28]} 7. e4 {[%emt 0:00:07]} a6 {[%emt 0:02:34]} 8. Be2 {[%emt 0:00:41]} b5 {[%emt 0:00:33]} 9. Qb3 {[%emt 0:00:28]} c5 {[%emt 0:08:02]} 10. dxc5 {[%emt 0:00:10]} Be6 {[%emt 0:00:11]} 11. Qc2 {[%emt 0:00:55] D97: Grünfeld: Russian System: 7 e4, replies other than 7...Bg4.} Nbd7 {[%emt 0:04:30]} 12. Be3 {[%emt 0:00:38] And now Rd1 would win.} Qc7 {[%emt 0:13:06] [#]} 13. Ng5 $146 {[%emt 0:22:40]} (13. Rc1 $14 {feels stronger.}) ({Predecessor:} 13. b4 Nxe4 14. Bd4 Nxc3 15. Qxc3 Bxd4 16. Nxd4 Bd5 17. O-O e5 18. Nf3 Qc6 19. Rfd1 {½-½ Scott,P (2287)-Wakeham,M (2051) WLS/MT/FLEW ICCF email 2019}) 13... Nxc5 $11 {[%emt 0:14:29]} 14. O-O {[%emt 0:04:54]} h6 {[%emt 0:06:57]} (14... Ng4 $2 15. Bxg4 Bxc3 16. Nxe6 Nxe6 17. bxc3 $18) 15. Nxe6 {[%emt 0:08:13]} Nxe6 {[%emt 0:00:06]} 16. Rac1 {[%emt 0:01:50][%cal Ba1c1,Bc1c2,Bc2c4,Bc4e4,Be4e7,Be7d7][%mdl 32]} b4 {[%emt 0:04:05]} 17. Na4 {[%emt 0:05:04]} Qxc2 {[%emt 0:00:32]} 18. Rxc2 {[%emt 0:00:07]} Nxe4 {[%emt 0:00:30]} 19. Bf3 {[%emt 0:09:07] A strong pair of Bishops.} f5 {[%emt 0:00:20]} 20. Rc4 {[%emt 0:01:32]} a5 {[%emt 0:10:40]} 21. Bxe4 {[%emt 0:01:31]} fxe4 {[%emt 0:00:04]} 22. Rxe4 {[%emt 0:00:31]} Nc7 {[%emt 0:03:55]} 23. Rxe7 {[%emt 0:03:17]} Nd5 {[%emt 0:00:04]} 24. Rd7 {[%emt 0:00:32]} Nxe3 {[%emt 0:07:49]} 25. fxe3 {[%emt 0:00:06]} Rac8 {[%emt 0:01:26]} 26. Rxf8+ {[%emt 0:01:43]} Kxf8 $16 {[%emt 0:00:12][%mdl 4096] Endgame [#] KRB-KRN} 27. Rd2 $1 {[%emt 0:01:50] White is more active.} Rc6 {[%emt 0:00:33]} 28. Kf2 {[%emt 0:01:46]} Ke7 {[%emt 0:00:55]} 29. Kf3 {[%emt 0:01:45]} Ke6 {[%emt 0:02:45]} 30. Ke4 {[%emt 0:01:00]} h5 {[%emt 0:01:31]} 31. b3 {[%emt 0:01:44]} Ke7 {[%emt 0:03:38]} 32. Re2 {[%emt 0:05:13]} Ke6 {[%emt 0:01:13]} 33. h3 {[%emt 0:00:48]} Bf6 {[%emt 0:00:44]} 34. Kd3 {[%emt 0:05:31]} Kd5 {[%emt 0:03:16] [#]} ({Better is} 34... Rd6+ $14 35. Ke4 Rc6) 35. Rc2 $1 {[%emt 0:02:20]} Bc3 $2 {[%emt 0:00:33] Black cannot hold the game after this.} (35... Rxc2 $16 {was worth a try.} 36. Kxc2 Ke4) 36. Nxc3+ {[%emt 0:00:47]} bxc3 {[%emt 0:00:03]} 37. Rxc3 $18 {[%emt 0:00:05] KR-KR} Rf6 {[%emt 0:00:05]} 38. e4+ {[%emt 0:00:51]} Kd6 {[%emt 0:00:08]} 39. Ke3 {[%emt 0:00:52]} Rf1 {[%emt 0:00:49]} 40. Rd3+ {[%emt 0:00:48]} Ke6 {[%emt 0:00:08]} 41. Rd5 {[%emt 0:30:41]} a4 $2 {[%emt 0:30:38]} (41... Re1+ 42. Kf3 a4 43. bxa4 Rf1+ 44. Ke3 Rg1) 42. bxa4 {[%emt 0:00:25] White is clearly winning.} Ra1 {[%emt 0:00:07]} 43. Rd2 {[%emt 0:00:37]} Rb1 {[%emt 0:00:09]} 44. a5 {[%emt 0:02:35]} Rb4 {[%emt 0:00:36]} (44... Rb5 $142 45. Rd5 (45. a6 Ra5 $18) 45... Rb2) 45. Rd4 {[%emt 0:00:35]} Rb2 {[%emt 0:00:06]} 46. Ra4 {[%emt 0:00:11] Weighted Error Value: White=0.05 (flawless) /Black=0.29 (precise)} 1-0

[Event "1st FIDE Olympiad DIS 2023"]
[Site "Belgrade"]
[Date "2023.01.31"]
[Round "2.2"]
[White "Mamarajabov, Sardorbek"]
[Black "Glazar, Domagoj"]
[Result "1-0"]
[ECO "B28"]
[WhiteElo "1712"]
[BlackElo "2119"]
[Annotator "TA"]
[PlyCount "61"]
[EventDate "2023.01.30"]
[EventType "team-tourn"]
[EventCountry "SRB"]
[SourceTitle "playchess.com"]
[Source "ChessBase"]
[SourceQuality "1"]
[WhiteTeam "Uzbekistan"]
[BlackTeam "Croatia"]
[WhiteTeamCountry "UZB"]
[BlackTeamCountry "CRO"]
[TimeControl "40/5400+30:1800+30"]

{[%evp 9,61,21,14,13,55,12,85,61,118,108,129,97,122,105,136,142,134,138,132,83,291,193,316,321,614,588,855,850,915,864,769,637,673,671,672,633,995,956,2093,1242,1469,1402,1635,1620,1523,1465,1390,1355,1490,998,6287,5804,4927,4918]} 1. e4 {[%emt 0:00:03]} c5 {[%emt 0:00:12]} 2. Nf3 {[%emt 0:01:01]} a6 {[%emt 0:00:36]} 3. d4 {[%emt 0:00:18]} cxd4 {[%emt 0:00:12]} 4. Nxd4 {[%emt 0:00:05]} e5 {[%emt 0:01:40]} 5. Nf3 {[%emt 0:03:39]} Nf6 {[%emt 0:01:45]} 6. Bg5 {[%emt 0:16:20] B28: Sicilian: 2 Nf3 a6 (O'Kelly Variation).} (6. Nxe5 $2 Qa5+ 7. Nd2 Qxe5 $19) 6... Qb6 {[%emt 0:08:56]} 7. Bxf6 {[%emt 0:07:03]} gxf6 {[%emt 0:00:17]} (7... Qxf6 $11 8. a3 d6) 8. Bc4 {[%emt 0:10:08] [#] White is better.} Qb4+ $146 {[%emt 0:08:39]} (8... Qxb2 $14 9. Nbd2 Nc6) ({Predecessor:} 8... Qxb2 9. Nbd2 b5 10. Rb1 Qa3 11. Bd5 Nc6 12. O-O Rb8 13. Nh4 Ne7 14. Nc4 Qc5 {½-½ Marcsingo,J (1985)-Reiter,L (1969) HUN-chT2 Asztalos 0708 2007 (6)}) 9. Nbd2 $16 {[%emt 0:00:21] White is more active.} Qxb2 {[%emt 0:03:16]} 10. O-O {[%emt 0:00:55]} Nc6 {[%emt 0:03:52]} 11. a4 {[%emt 0:14:59]} Be7 {[%emt 0:04:37]} 12. Bb3 {[%emt 0:01:24] Hoping for Nc4.} Na5 {[%emt 0:01:07]} 13. Nc4 {[%emt 0:05:02]} Nxc4 {[%emt 0:00:15]} 14. Bxc4 {[%emt 0:00:03]} ({White should try} 14. Qd3 d5 15. Rfb1 dxe4 16. Qxc4) 14... O-O $2 {[%emt 0:00:57] This costs Black the game.} (14... Qc3 $16 15. Bd5 Rb8) 15. Nh4 {[%emt 0:06:23]} d6 {[%emt 0:00:49]} (15... d5 $142 16. Bxd5 Qd4) 16. Bd5 $18 {[%emt 0:05:37] And now Rb1 would win.} Rb8 $2 {[%emt 0:01:44]} (16... f5) 17. Rb1 {[%emt 0:00:13] White is clearly winning.} Qa3 {[%emt 0:01:31]} 18. Rb3 {[%emt 0:03:11]} Qxa4 {[%emt 0:00:29]} 19. Qh5 {[%emt 0:00:19]} Kh8 {[%emt 0:12:11]} 20. Bxf7 {[%emt 0:02:17] Intending Ng6+ and mate.} Bg4 {[%emt 0:04:10]} 21. Ng6+ {[%emt 0:01:16]} (21. Qxg4 Rxf7 22. Rg3 (22. Nf5 Rg8 $16) 22... Qe8 $18) 21... Kg7 {[%emt 0:00:08]} 22. Qxg4 {[%emt 0:00:06]} f5 {[%emt 0:04:54]} 23. Qh5 {[%emt 0:01:25][%cal Ob3g3] Threatening mate with Rg3!} (23. Nxe7+ $2 fxg4 24. Bd5 Qd4 $19) (23. Qxf5 Rxf7 24. Nxe7 Rxf5 25. Nxf5+ Kh8 26. Nxd6 Rf8 $17) 23... Rxf7 {[%emt 0:00:33]} 24. Nxe7 {[%emt 0:00:30][%mdl 64] [#] Remove Defender} Rxe7 {[%emt 0:00:10]} 25. Qg5+ {[%emt 0:00:35]} ({Not} 25. Qxf5 Kh8 $16) 25... Kf8 {[%emt 0:01:27]} 26. Qf6+ {[%emt 0:00:29]} Ke8 {[%emt 0:00:18]} 27. Qh8+ {[%emt 0:00:08][%mdl 64] Skewer} ({Less strong is} 27. Qxf5 Qd7 $16) 27... Kf7 {[%emt 0:00:43]} 28. Qxb8 {[%emt 0:00:15]} Qxe4 {[%emt 0:00:08]} 29. Qxd6 {[%emt 0:02:40] Rb6 is the strong threat.} Qxc2 {[%emt 0:00:37] [#]} 30. Rxb7 $3 {[%emt 0:01:22][%mdl 512]} Rxb7 {[%emt 0:00:13]} 31. Qd5+ {[%emt 0:00:04] A cool game by Mamarajabov.   Weighted Error Value: White=0.36/Black=0.78} ({Worse is} 31. Qxe5 Rb1 $11) 1-0